[Event "*** Titled Tuesday Blitz"]
[Site "Chess.com"]
[Date "2020.04.28"]
[Round "3"]
[White "David_Paravyan"]
[Black "albi1999"]
[Result "1-0"]
[WhiteElo "2958"]
[BlackElo "2653"]
[TimeControl "180+1"]
[EndTime "10:29:08 PDT"]
[Termination "David_Paravyan won by resignation"]

1. e4 {[%clk 0:03:00.9]} 1... e5 {[%clk 0:02:57.9]} 2. Nf3 {[%clk 0:02:59]} 2...
Nc6 {[%clk 0:02:57.7]} 3. Bb5 {[%clk 0:02:59.5]} 3... a6 {[%clk 0:02:57.6]} 4.
Ba4 {[%clk 0:02:59.8]} 4... Nf6 {[%clk 0:02:55.9]} 5. O-O {[%clk 0:03:00.1]}
5... Be7 {[%clk 0:02:54.6]} 6. Re1 {[%clk 0:02:59.9]} 6... b5 {[%clk 0:02:53.4]}
7. Bb3 {[%clk 0:03:00.5]} 7... O-O {[%clk 0:02:53.5]} 8. a4 {[%clk 0:02:58.9]}
8... b4 {[%clk 0:02:51.6]} 9. d4 {[%clk 0:02:58.6]} 9... d6 {[%clk 0:02:51.2]}
10. dxe5 {[%clk 0:02:59]} 10... Nxe5 {[%clk 0:02:51.3]} 11. Nbd2 {[%clk
0:02:58.3]} 11... Bg4 {[%clk 0:02:32.8]} 12. h3 {[%clk 0:02:49]} 12... Bh5
{[%clk 0:02:32.3]} 13. g4 {[%clk 0:01:27.6]} 13... Bg6 {[%clk 0:02:01.8]} 14.
Nd4 {[%clk 0:01:27.1]} 14... c5 {[%clk 0:01:43.1]} 15. Nf5 {[%clk 0:01:27.1]}
15... Bxf5 {[%clk 0:01:26.6]} 16. exf5 {[%clk 0:01:28]} 16... Qc7 {[%clk
0:01:21.9]} 17. f4 {[%clk 0:01:09.6]} 17... Nc6 {[%clk 0:01:16.5]} 18. g5 {[%clk
0:01:04.2]} 18... Nd7 {[%clk 0:01:01.3]} 19. Qh5 {[%clk 0:00:35.4]} 19... Qd8
{[%clk 0:00:29.1]} 20. Nf3 {[%clk 0:00:21.1]} 20... Na5 {[%clk 0:00:18.1]} 21.
Bd5 {[%clk 0:00:21.5]} 21... Rc8 {[%clk 0:00:17.5]} 22. Bd2 {[%clk 0:00:11.9]}
22... Nb6 {[%clk 0:00:17.6]} 23. Be4 {[%clk 0:00:09.3]} 23... d5 {[%clk
0:00:17.2]} 24. Bd3 {[%clk 0:00:09.9]} 24... c4 {[%clk 0:00:17.3]} 25. f6 {[%clk
0:00:10.1]} 25... cxd3 {[%clk 0:00:17]} 26. fxe7 {[%clk 0:00:09.6]} 26... Qc7
{[%clk 0:00:16.1]} 27. exf8=Q+ {[%clk 0:00:09.9]} 27... Rxf8 {[%clk 0:00:17]}
28. cxd3 {[%clk 0:00:09.9]} 28... Nb3 {[%clk 0:00:17.1]} 29. Rad1 {[%clk
0:00:09.3]} 29... Qc2 {[%clk 0:00:17.2]} 30. Qg4 {[%clk 0:00:08.3]} 30... a5
{[%clk 0:00:14.8]} 31. Be3 {[%clk 0:00:08.5]} 31... Nc8 {[%clk 0:00:13.2]} 32.
Qg2 {[%clk 0:00:08.6]} 32... Nd6 {[%clk 0:00:12.6]} 33. Qxc2 {[%clk 0:00:08.2]}
1-0

[Event "*** Titled Tuesday Blitz"]
[Site "Chess.com"]
[Date "2020.04.28"]
[Round "3"]
[White "top_bu_tz"]
[Black "VitaliyBernadskiy"]
[Result "0-1"]
[WhiteElo "2412"]
[BlackElo "2704"]
[TimeControl "180+1"]
[EndTime "10:29:08 PDT"]
[Termination "VitaliyBernadskiy won on time"]

1. e4 {[%clk 0:03:00.9]} 1... e6 {[%clk 0:02:58.5]} 2. d4 {[%clk 0:02:57.2]}
2... d5 {[%clk 0:02:59.4]} 3. Nc3 {[%clk 0:02:57.6]} 3... Nf6 {[%clk 0:02:58.3]}
4. Bg5 {[%clk 0:02:48.7]} 4... Bb4 {[%clk 0:02:55.4]} 5. e5 {[%clk 0:02:45.9]}
5... h6 {[%clk 0:02:55.3]} 6. exf6 {[%clk 0:02:43.4]} 6... hxg5 {[%clk 0:02:55]}
7. fxg7 {[%clk 0:02:43.3]} 7... Rg8 {[%clk 0:02:55.5]} 8. a3 {[%clk 0:02:35.1]}
8... Bxc3+ {[%clk 0:02:42.3]} 9. bxc3 {[%clk 0:02:36]} 9... Qf6 {[%clk
0:02:42.5]} 10. h4 {[%clk 0:02:17.4]} 10... gxh4 {[%clk 0:02:37.8]} 11. Nf3
{[%clk 0:02:05]} 11... Qxg7 {[%clk 0:02:37.1]} 12. Rxh4 {[%clk 0:02:04]} 12...
Nd7 {[%clk 0:02:36.9]} 13. g3 {[%clk 0:01:56.9]} 13... Nf6 {[%clk 0:02:29.5]}
14. Bd3 {[%clk 0:01:22.3]} 14... Bd7 {[%clk 0:02:26.3]} 15. Rb1 {[%clk
0:01:20.3]} 15... b6 {[%clk 0:02:26.2]} 16. Qe2 {[%clk 0:01:10.2]} 16... O-O-O
{[%clk 0:02:18.1]} 17. Ne5 {[%clk 0:00:59.9]} 17... Be8 {[%clk 0:01:37.7]} 18.
Bb5 {[%clk 0:00:35.7]} 18... Rd6 {[%clk 0:01:05.4]} 19. Bxe8 {[%clk 0:00:29]}
19... Nxe8 {[%clk 0:00:51.6]} 20. Qa6+ {[%clk 0:00:16.2]} 20... Kb8 {[%clk
0:00:34.1]} 21. Nd3 {[%clk 0:00:16.3]} 21... f6 {[%clk 0:00:24.5]} 22. Nc5
{[%clk 0:00:16.2]} 22... c6 {[%clk 0:00:22.8]} 23. a4 {[%clk 0:00:06.7]} 23...
Qc7 {[%clk 0:00:16.3]} 24. a5 {[%clk 0:00:06.1]} 24... b5 {[%clk 0:00:16.4]} 25.
Rf4 {[%clk 0:00:03]} 25... e5 {[%clk 0:00:15.8]} 26. dxe5 {[%clk 0:00:02.7]}
26... fxe5 {[%clk 0:00:16.7]} 27. Rf7 {[%clk 0:00:03]} 27... Qxf7 {[%clk
0:00:15.2]} 28. Rxb5+ {[%clk 0:00:03.9]} 28... cxb5 {[%clk 0:00:14.7]} 29. Qxb5+
{[%clk 0:00:04.8]} 29... Ka8 {[%clk 0:00:14.2]} 30. a6 {[%clk 0:00:04.6]} 30...
Qc7 {[%clk 0:00:12.8]} 0-1

[Event "*** Titled Tuesday Blitz"]
[Site "Chess.com"]
[Date "2020.04.28"]
[Round "3"]
[White "EnergeticHay"]
[Black "elohunter1999"]
[Result "0-1"]
[WhiteElo "2207"]
[BlackElo "2503"]
[TimeControl "180+1"]
[EndTime "10:29:08 PDT"]
[Termination "elohunter1999 won by resignation"]

1. e4 {[%clk 0:03:00.9]} 1... c5 {[%clk 0:02:59.4]} 2. Nf3 {[%clk 0:03:01.3]}
2... Nc6 {[%clk 0:02:58.8]} 3. d4 {[%clk 0:03:01.7]} 3... cxd4 {[%clk
0:02:59.2]} 4. Nxd4 {[%clk 0:03:02.6]} 4... Nf6 {[%clk 0:02:58.8]} 5. Nc3 {[%clk
0:03:02.8]} 5... e5 {[%clk 0:02:59.2]} 6. Ndb5 {[%clk 0:03:03]} 6... d6 {[%clk
0:02:59.8]} 7. Bg5 {[%clk 0:03:00.3]} 7... a6 {[%clk 0:02:58.9]} 8. Na3 {[%clk
0:03:00.9]} 8... b5 {[%clk 0:02:59.3]} 9. Nd5 {[%clk 0:03:01.6]} 9... Be7 {[%clk
0:02:59.1]} 10. Bxf6 {[%clk 0:03:02.2]} 10... Bxf6 {[%clk 0:02:59.8]} 11. c3
{[%clk 0:03:02.9]} 11... Bg5 {[%clk 0:02:57.3]} 12. Nc2 {[%clk 0:03:03.2]} 12...
Rb8 {[%clk 0:02:57.7]} 13. a4 {[%clk 0:02:59.3]} 13... bxa4 {[%clk 0:02:58.6]}
14. Ncb4 {[%clk 0:02:58.9]} 14... Nxb4 {[%clk 0:02:59]} 15. Nxb4 {[%clk
0:02:54.6]} 15... Bd7 {[%clk 0:02:23.5]} 16. Qxd6 {[%clk 0:02:44.2]} 16... Be7
{[%clk 0:02:21.8]} 17. Qxe5 {[%clk 0:02:40.6]} 17... O-O {[%clk 0:02:20.5]} 18.
Nd5 {[%clk 0:02:29.9]} 18... Bc5 {[%clk 0:01:57.8]} 19. Bd3 {[%clk 0:01:56.5]}
19... Rxb2 {[%clk 0:01:50.9]} 20. O-O {[%clk 0:01:56]} 20... Re8 {[%clk
0:01:31.7]} 21. Qg3 {[%clk 0:01:39.1]} 21... a3 {[%clk 0:01:24.8]} 22. e5 {[%clk
0:01:10.5]} 22... Kh8 {[%clk 0:01:05]} 23. Kh1 {[%clk 0:01:04.8]} 23... Bc6
{[%clk 0:00:51.5]} 24. c4 {[%clk 0:00:31.6]} 24... Bxd5 {[%clk 0:00:33.6]} 25.
cxd5 {[%clk 0:00:32.5]} 25... Qxd5 {[%clk 0:00:33.7]} 26. Qh3 {[%clk 0:00:32.7]}
26... g6 {[%clk 0:00:30.4]} 27. f4 {[%clk 0:00:32.5]} 27... Rb3 {[%clk
0:00:28.7]} 28. Rf3 {[%clk 0:00:30.8]} 28... a2 {[%clk 0:00:27.1]} 29. Bxg6
{[%clk 0:00:21.6]} 29... Rb1+ {[%clk 0:00:23.9]} 30. Rf1 {[%clk 0:00:17.4]}
30... Rxf1+ {[%clk 0:00:22]} 31. Rxf1 {[%clk 0:00:18.3]} 31... fxg6 {[%clk
0:00:22.3]} 32. f5 {[%clk 0:00:14.7]} 32... Qxe5 {[%clk 0:00:20.5]} 33. fxg6
{[%clk 0:00:14]} 33... Qg7 {[%clk 0:00:19.1]} 34. gxh7 {[%clk 0:00:12.3]} 34...
a1=Q {[%clk 0:00:18.8]} 35. Qf3 {[%clk 0:00:10.5]} 35... Qxf1+ {[%clk
0:00:17.9]} 36. Qxf1 {[%clk 0:00:11.4]} 36... Bb4 {[%clk 0:00:18.5]} 0-1

[Event "*** Titled Tuesday Blitz"]
[Site "Chess.com"]
[Date "2020.04.28"]
[Round "3"]
[White "Akhayan"]
[Black "Szparu"]
[Result "0-1"]
[WhiteElo "2289"]
[BlackElo "2500"]
[TimeControl "180+1"]
[EndTime "10:29:10 PDT"]
[Termination "Szparu won by resignation"]

1. d4 {[%clk 0:03:00.9]} 1... Nf6 {[%clk 0:02:59.6]} 2. Nf3 {[%clk 0:03:01]}
2... g6 {[%clk 0:02:59.4]} 3. g3 {[%clk 0:03:01.1]} 3... Bg7 {[%clk 0:02:59.1]}
4. Bg2 {[%clk 0:03:01.7]} 4... d6 {[%clk 0:02:59.2]} 5. O-O {[%clk 0:03:02]}
5... O-O {[%clk 0:02:58.5]} 6. c4 {[%clk 0:03:02.3]} 6... Nbd7 {[%clk 0:02:58]}
7. Nc3 {[%clk 0:03:01.9]} 7... Re8 {[%clk 0:02:56.6]} 8. b3 {[%clk 0:02:57.3]}
8... c6 {[%clk 0:02:56.3]} 9. Bb2 {[%clk 0:02:57.2]} 9... Qc7 {[%clk 0:02:56.1]}
10. e4 {[%clk 0:02:56.4]} 10... e5 {[%clk 0:02:55.7]} 11. dxe5 {[%clk
0:02:56.1]} 11... dxe5 {[%clk 0:02:49.7]} 12. Ba3 {[%clk 0:02:53.8]} 12... Nf8
{[%clk 0:02:45.7]} 13. Qe2 {[%clk 0:02:43]} 13... Bg4 {[%clk 0:02:37.3]} 14. h3
{[%clk 0:02:37.7]} 14... Bxf3 {[%clk 0:02:36.7]} 15. Qxf3 {[%clk 0:02:37.7]}
15... Ne6 {[%clk 0:02:29.7]} 16. Ne2 {[%clk 0:02:35.7]} 16... Nd4 {[%clk
0:02:20.1]} 17. Nxd4 {[%clk 0:02:34.7]} 17... exd4 {[%clk 0:02:19.8]} 18. Qd3
{[%clk 0:02:30.4]} 18... c5 {[%clk 0:02:10]} 19. Bc1 {[%clk 0:02:15.2]} 19...
Nd7 {[%clk 0:02:04.1]} 20. Bf4 {[%clk 0:02:14.8]} 20... Be5 {[%clk 0:02:00.7]}
21. Bd2 {[%clk 0:02:06.8]} 21... a6 {[%clk 0:01:43.1]} 22. Rae1 {[%clk
0:02:06.1]} 22... b5 {[%clk 0:01:32.3]} 23. f4 {[%clk 0:01:57.2]} 23... bxc4
{[%clk 0:01:25.1]} 24. bxc4 {[%clk 0:01:56]} 24... Bg7 {[%clk 0:01:24.2]} 25. e5
{[%clk 0:01:55.9]} 25... Rab8 {[%clk 0:01:21]} 26. Bd5 {[%clk 0:01:52.7]} 26...
Nb6 {[%clk 0:01:09.6]} 27. e6 {[%clk 0:01:42.1]} 27... Nxd5 {[%clk 0:01:04.5]}
28. cxd5 {[%clk 0:01:41.8]} 28... c4 {[%clk 0:01:02.3]} 29. d6 {[%clk
0:01:21.7]} 29... Qc5 {[%clk 0:00:23.3]} 30. Qf3 {[%clk 0:00:41.5]} 30... Rxe6
{[%clk 0:00:21.5]} 31. d7 {[%clk 0:00:38.7]} 31... Rd8 {[%clk 0:00:16]} 32. Rxe6
{[%clk 0:00:36.5]} 32... fxe6 {[%clk 0:00:15.7]} 33. Kg2 {[%clk 0:00:33.1]}
33... Rxd7 {[%clk 0:00:13]} 34. Qe4 {[%clk 0:00:33.2]} 34... Qd5 {[%clk
0:00:12.4]} 35. Re1 {[%clk 0:00:33]} 35... Qxe4+ {[%clk 0:00:12.1]} 36. Rxe4
{[%clk 0:00:33.3]} 36... c3 {[%clk 0:00:12]} 37. Bc1 {[%clk 0:00:31.6]} 37... d3
{[%clk 0:00:12]} 38. Rxe6 {[%clk 0:00:29.5]} 38... d2 {[%clk 0:00:11.9]} 39.
Bxd2 {[%clk 0:00:29.5]} 39... cxd2 {[%clk 0:00:11.8]} 40. h4 {[%clk 0:00:26.4]}
40... d1=Q {[%clk 0:00:11.6]} 0-1

[Event "*** Titled Tuesday Blitz"]
[Site "Chess.com"]
[Date "2020.04.28"]
[Round "3"]
[White "lupta_robin"]
[Black "stasiek18"]
[Result "1-0"]
[WhiteElo "2545"]
[BlackElo "2344"]
[TimeControl "180+1"]
[EndTime "10:29:12 PDT"]
[Termination "lupta_robin won on time"]

1. b3 {[%clk 0:03:00.9]} 1... e5 {[%clk 0:02:58.3]} 2. Bb2 {[%clk 0:03:01.3]}
2... Nc6 {[%clk 0:02:57.6]} 3. e3 {[%clk 0:03:01.7]} 3... Nf6 {[%clk 0:02:57.2]}
4. Nf3 {[%clk 0:03:01.2]} 4... d6 {[%clk 0:02:51.2]} 5. d4 {[%clk 0:03:00.7]}
5... e4 {[%clk 0:02:49.8]} 6. Nfd2 {[%clk 0:02:59.1]} 6... Bf5 {[%clk
0:02:42.5]} 7. c4 {[%clk 0:02:53]} 7... Qe7 {[%clk 0:02:35.7]} 8. Nc3 {[%clk
0:02:48]} 8... g5 {[%clk 0:02:26.8]} 9. d5 {[%clk 0:02:34.8]} 9... Ne5 {[%clk
0:02:25]} 10. Nb5 {[%clk 0:02:29.4]} 10... Bg7 {[%clk 0:02:15.4]} 11. h3 {[%clk
0:02:13.2]} 11... Bg6 {[%clk 0:02:07.5]} 12. Be2 {[%clk 0:02:07]} 12... h5
{[%clk 0:02:06.9]} 13. a4 {[%clk 0:01:44]} 13... a6 {[%clk 0:01:38.5]} 14. Nd4
{[%clk 0:01:33.8]} 14... O-O-O {[%clk 0:01:30.1]} 15. a5 {[%clk 0:01:27.8]}
15... g4 {[%clk 0:01:18.4]} 16. b4 {[%clk 0:01:22]} 16... g3 {[%clk 0:01:05.4]}
17. fxg3 {[%clk 0:01:14.3]} 17... Bh6 {[%clk 0:01:05.2]} 18. Qb3 {[%clk
0:00:52.9]} 18... Nd3+ {[%clk 0:01:03.4]} 19. Bxd3 {[%clk 0:00:53]} 19... exd3
{[%clk 0:01:04.3]} 20. O-O-O {[%clk 0:00:53]} 20... Qxe3 {[%clk 0:00:56.5]} 21.
Rhe1 {[%clk 0:00:36.8]} 21... Qxg3 {[%clk 0:00:53.9]} 22. b5 {[%clk 0:00:28.8]}
22... Bxd2+ {[%clk 0:00:34.2]} 23. Kxd2 {[%clk 0:00:27.4]} 23... Qf4+ {[%clk
0:00:12.8]} 24. Kc3 {[%clk 0:00:25.3]} 24... Ne4+ {[%clk 0:00:12.3]} 25. Rxe4
{[%clk 0:00:20.1]} 25... Qxe4 {[%clk 0:00:08.4]} 26. bxa6 {[%clk 0:00:20.1]}
26... bxa6 {[%clk 0:00:07.5]} 27. Nc6 {[%clk 0:00:16]} 27... Kd7 {[%clk
0:00:07.8]} 28. Qa4 {[%clk 0:00:15.5]} 28... Kc8 {[%clk 0:00:02.5]} 29. Qb3
{[%clk 0:00:11]} 29... Kd7 {[%clk 0:00:02.1]} 30. Qa4 {[%clk 0:00:09.6]} 30...
Kc8 {[%clk 0:00:02.5]} 31. Nd4 {[%clk 0:00:09.6]} 31... Rde8 {[%clk 0:00:01.3]}
32. Qc6 {[%clk 0:00:09.6]} 1-0

[Event "*** Titled Tuesday Blitz"]
[Site "Chess.com"]
[Date "2020.04.28"]
[Round "3"]
[White "Terao90"]
[Black "Blagorod"]
[Result "0-1"]
[WhiteElo "2326"]
[BlackElo "2141"]
[TimeControl "180+1"]
[EndTime "10:29:12 PDT"]
[Termination "Blagorod won by resignation"]

1. e4 {[%clk 0:03:00.9]} 1... e5 {[%clk 0:02:59.9]} 2. Nf3 {[%clk 0:03:00.5]}
2... Nf6 {[%clk 0:02:59.9]} 3. Nxe5 {[%clk 0:03:00]} 3... d6 {[%clk 0:02:59.8]}
4. Nf3 {[%clk 0:02:58.4]} 4... Nxe4 {[%clk 0:03:00]} 5. Nc3 {[%clk 0:02:58.6]}
5... Nxc3 {[%clk 0:02:59.9]} 6. dxc3 {[%clk 0:02:59.5]} 6... Be7 {[%clk
0:03:00.3]} 7. Be3 {[%clk 0:02:57.4]} 7... Be6 {[%clk 0:02:58.7]} 8. Qd2 {[%clk
0:02:56.8]} 8... Nc6 {[%clk 0:02:57.8]} 9. O-O-O {[%clk 0:02:48.2]} 9... Qd7
{[%clk 0:02:57.5]} 10. Kb1 {[%clk 0:02:45.3]} 10... O-O-O {[%clk 0:02:56.1]} 11.
Nd4 {[%clk 0:02:40.1]} 11... a6 {[%clk 0:02:30.8]} 12. Be2 {[%clk 0:02:32.5]}
12... Bd5 {[%clk 0:02:17.7]} 13. Rhg1 {[%clk 0:02:24]} 13... Ne5 {[%clk
0:02:12.1]} 14. b3 {[%clk 0:02:19.5]} 14... Bc6 {[%clk 0:01:48]} 15. h3 {[%clk
0:02:17.3]} 15... g6 {[%clk 0:01:40.6]} 16. f4 {[%clk 0:02:16.2]} 16... f5
{[%clk 0:01:23.9]} 17. fxe5 {[%clk 0:02:10.4]} 17... dxe5 {[%clk 0:01:24.5]} 18.
Nxc6 {[%clk 0:02:09.5]} 18... Qxc6 {[%clk 0:01:24.5]} 19. Qe1 {[%clk 0:02:08.5]}
19... Rxd1+ {[%clk 0:01:11.2]} 20. Bxd1 {[%clk 0:02:07.3]} 20... Rd8 {[%clk
0:01:10.2]} 21. Bc1 {[%clk 0:01:52.3]} 21... e4 {[%clk 0:01:09.3]} 22. Bb2
{[%clk 0:01:50.8]} 22... Bg5 {[%clk 0:01:05.4]} 23. c4 {[%clk 0:01:48.5]} 23...
e3 {[%clk 0:00:51.3]} 24. Bf3 {[%clk 0:01:47]} 24... Qc5 {[%clk 0:00:48.1]} 25.
Bc3 {[%clk 0:01:44.1]} 25... b5 {[%clk 0:00:41.1]} 26. cxb5 {[%clk 0:01:41.1]}
26... axb5 {[%clk 0:00:41.3]} 27. Kb2 {[%clk 0:01:36.1]} 27... Be7 {[%clk
0:00:37.2]} 28. b4 {[%clk 0:01:32.4]} 28... Qa7 {[%clk 0:00:31.2]} 29. a3 {[%clk
0:01:26]} 29... Rd6 {[%clk 0:00:28.5]} 30. Qe2 {[%clk 0:01:25]} 30... Qb6 {[%clk
0:00:20.7]} 31. Rd1 {[%clk 0:01:23.7]} 31... Bg5 {[%clk 0:00:18.1]} 32. Rxd6
{[%clk 0:01:20.5]} 32... cxd6 {[%clk 0:00:18.2]} 33. g3 {[%clk 0:01:15.6]} 33...
Kd7 {[%clk 0:00:17.5]} 34. h4 {[%clk 0:01:14.4]} 34... Be7 {[%clk 0:00:16.9]}
35. Qd3 {[%clk 0:01:12.5]} 35... h6 {[%clk 0:00:15.1]} 36. Bd4 {[%clk 0:01:09]}
36... Qc7 {[%clk 0:00:13.8]} 37. Qxe3 {[%clk 0:01:08.9]} 37... g5 {[%clk
0:00:14.1]} 38. Qe6+ {[%clk 0:01:08.8]} 38... Kxe6 {[%clk 0:00:13.6]} 39. hxg5
{[%clk 0:01:08.8]} 39... hxg5 {[%clk 0:00:13.4]} 40. Be2 {[%clk 0:01:09.5]}
40... f4 {[%clk 0:00:13]} 41. gxf4 {[%clk 0:01:09.4]} 41... gxf4 {[%clk
0:00:13.3]} 42. Bxb5 {[%clk 0:01:10.1]} 42... Qb7 {[%clk 0:00:12.2]} 43. Bc4+
{[%clk 0:01:09.6]} 43... d5 {[%clk 0:00:12.2]} 44. Bd3 {[%clk 0:01:09.8]} 44...
Bxb4 {[%clk 0:00:11.3]} 45. Ka2 {[%clk 0:01:05.4]} 45... Qa8 {[%clk 0:00:09.3]}
46. Bb2 {[%clk 0:01:04.9]} 46... Bd6 {[%clk 0:00:08.6]} 47. Kb3 {[%clk
0:01:05.2]} 47... f3 {[%clk 0:00:08.4]} 48. a4 {[%clk 0:01:05.2]} 48... f2
{[%clk 0:00:08.2]} 49. Bd4 {[%clk 0:01:04.3]} 49... Qf8 {[%clk 0:00:07.2]} 50.
a5 {[%clk 0:01:03.1]} 50... f1=Q {[%clk 0:00:06.4]} 0-1

[Event "*** Titled Tuesday Blitz"]
[Site "Chess.com"]
[Date "2020.04.28"]
[Round "3"]
[White "canary2016"]
[Black "Zarikovs1999"]
[Result "0-1"]
[WhiteElo "1854"]
[BlackElo "2274"]
[TimeControl "180+1"]
[EndTime "10:29:12 PDT"]
[Termination "Zarikovs1999 won on time"]

1. Nf3 {[%clk 0:03:00.9]} 1... d5 {[%clk 0:02:57.3]} 2. c4 {[%clk 0:02:59.8]}
2... d4 {[%clk 0:02:56.6]} 3. b4 {[%clk 0:02:59.3]} 3... c5 {[%clk 0:02:50.3]}
4. Bb2 {[%clk 0:02:57.5]} 4... Nc6 {[%clk 0:02:43.9]} 5. a3 {[%clk 0:02:52.5]}
5... f6 {[%clk 0:02:39.7]} 6. g3 {[%clk 0:02:47.1]} 6... e5 {[%clk 0:02:39.4]}
7. d3 {[%clk 0:02:37.5]} 7... Bd6 {[%clk 0:02:37.1]} 8. Bg2 {[%clk 0:02:36.7]}
8... Nge7 {[%clk 0:02:37]} 9. O-O {[%clk 0:02:35.9]} 9... O-O {[%clk 0:02:36.9]}
10. Nbd2 {[%clk 0:02:17]} 10... cxb4 {[%clk 0:02:27.3]} 11. axb4 {[%clk
0:02:14.6]} 11... Bxb4 {[%clk 0:02:28.2]} 12. Qb3 {[%clk 0:02:07.4]} 12... a5
{[%clk 0:02:24.2]} 13. Ba3 {[%clk 0:02:02.1]} 13... Qd6 {[%clk 0:02:13.7]} 14.
c5+ {[%clk 0:01:43]} 14... Qe6 {[%clk 0:02:07.9]} 15. Nc4 {[%clk 0:01:34.4]}
15... Nd5 {[%clk 0:01:41.1]} 16. Bxb4 {[%clk 0:01:27]} 16... Ndxb4 {[%clk
0:01:35.7]} 17. Qb2 {[%clk 0:01:21.2]} 17... Qe7 {[%clk 0:01:28.5]} 18. Nb6
{[%clk 0:01:18.4]} 18... Ra6 {[%clk 0:01:25.7]} 19. Rfc1 {[%clk 0:01:16.8]}
19... Be6 {[%clk 0:01:21.3]} 20. Nd2 {[%clk 0:01:13.5]} 20... Rd8 {[%clk
0:01:06.8]} 21. Ne4 {[%clk 0:01:10.5]} 21... Nd5 {[%clk 0:01:02.8]} 22. Nd6
{[%clk 0:00:56.3]} 22... Nxb6 {[%clk 0:00:57.1]} 23. Nxb7 {[%clk 0:00:33.5]}
23... Qxb7 {[%clk 0:00:36.5]} 24. cxb6 {[%clk 0:00:30.8]} 24... Rxb6 {[%clk
0:00:27.5]} 25. Qc2 {[%clk 0:00:22.7]} 25... Nb4 {[%clk 0:00:24.6]} 26. Qc5
{[%clk 0:00:14.9]} 26... Bd5 {[%clk 0:00:20.4]} 27. Qxa5 {[%clk 0:00:11.7]}
27... Bxg2 {[%clk 0:00:18.9]} 28. f3 {[%clk 0:00:09.1]} 28... Bh3 {[%clk
0:00:16.7]} 29. Rab1 {[%clk 0:00:06.3]} 29... Nd5 {[%clk 0:00:14.4]} 30. Qa2
{[%clk 0:00:05.1]} 30... Be6 {[%clk 0:00:12.3]} 31. Rxb6 {[%clk 0:00:04.2]}
31... Qxb6 {[%clk 0:00:12.5]} 32. Rb1 {[%clk 0:00:04.2]} 32... Nc3 {[%clk
0:00:11]} 33. Rxb6 {[%clk 0:00:01.3]} 33... Bxa2 {[%clk 0:00:11.5]} 0-1

[Event "*** Titled Tuesday Blitz"]
[Site "Chess.com"]
[Date "2020.04.28"]
[Round "3"]
[White "Pomegranate988"]
[Black "Sethu0025"]
[Result "0-1"]
[WhiteElo "2456"]
[BlackElo "2830"]
[TimeControl "180+1"]
[EndTime "10:29:13 PDT"]
[Termination "Sethu0025 won by resignation"]

1. d4 {[%clk 0:03:00.9]} 1... d6 {[%clk 0:02:59.8]} 2. Nf3 {[%clk 0:02:59.2]}
2... g6 {[%clk 0:02:59.6]} 3. g3 {[%clk 0:02:57.8]} 3... Bg7 {[%clk 0:02:59.5]}
4. Bg2 {[%clk 0:02:58.4]} 4... Nf6 {[%clk 0:03:00.4]} 5. O-O {[%clk 0:02:58.4]}
5... O-O {[%clk 0:03:01.3]} 6. c4 {[%clk 0:02:57.3]} 6... Nbd7 {[%clk
0:03:01.7]} 7. Nc3 {[%clk 0:02:56.9]} 7... e5 {[%clk 0:03:02.3]} 8. h3 {[%clk
0:02:57.2]} 8... Re8 {[%clk 0:03:01.5]} 9. e4 {[%clk 0:02:56.3]} 9... exd4
{[%clk 0:03:01.8]} 10. Nxd4 {[%clk 0:02:55.8]} 10... Nc5 {[%clk 0:03:02.4]} 11.
Re1 {[%clk 0:02:53.6]} 11... Bd7 {[%clk 0:03:02.3]} 12. Bf4 {[%clk 0:02:47.8]}
12... h6 {[%clk 0:03:01.7]} 13. Rb1 {[%clk 0:02:30.6]} 13... a5 {[%clk
0:02:59.4]} 14. b3 {[%clk 0:02:28.7]} 14... Qc8 {[%clk 0:02:54.8]} 15. Kh2
{[%clk 0:02:27.5]} 15... h5 {[%clk 0:02:48.3]} 16. Qd2 {[%clk 0:02:20.3]} 16...
h4 {[%clk 0:02:44]} 17. gxh4 {[%clk 0:02:15.4]} 17... Nh5 {[%clk 0:02:41.9]} 18.
Bg3 {[%clk 0:02:11.8]} 18... Qd8 {[%clk 0:02:29.1]} 19. Nd5 {[%clk 0:02:07.9]}
19... Nxg3 {[%clk 0:02:15.8]} 20. fxg3 {[%clk 0:02:06.1]} 20... Be5 {[%clk
0:02:14.4]} 21. Nf4 {[%clk 0:01:59.9]} 21... Qf6 {[%clk 0:02:08.2]} 22. Rbd1
{[%clk 0:01:58.7]} 22... c6 {[%clk 0:02:03]} 23. Rf1 {[%clk 0:01:56.8]} 23...
Qg7 {[%clk 0:02:01.6]} 24. Rfe1 {[%clk 0:01:42.5]} 24... Rad8 {[%clk 0:01:49.3]}
25. Nf3 {[%clk 0:01:40.5]} 25... Bc3 {[%clk 0:01:48.2]} 26. Qxd6 {[%clk
0:01:31]} 26... Bxe1 {[%clk 0:01:48.2]} 27. Qxc5 {[%clk 0:01:29.1]} 27... Bb4
{[%clk 0:01:43.8]} 28. Qb6 {[%clk 0:01:28.3]} 28... Qf8 {[%clk 0:01:24.3]} 29.
h5 {[%clk 0:01:13.2]} 29... Bd6 {[%clk 0:00:48.6]} 30. e5 {[%clk 0:01:07.2]}
30... g5 {[%clk 0:00:41.3]} 31. Nxg5 {[%clk 0:00:52.7]} 31... Bxe5 {[%clk
0:00:40.9]} 32. Ne4 {[%clk 0:00:48.4]} 32... Bf5 {[%clk 0:00:32.3]} 33. Rxd8
{[%clk 0:00:44.5]} 33... Rxd8 {[%clk 0:00:33.2]} 34. Qxa5 {[%clk 0:00:45]} 34...
f6 {[%clk 0:00:30.2]} 35. Ng6 {[%clk 0:00:42.1]} 35... Bxg6 {[%clk 0:00:25.8]}
36. hxg6 {[%clk 0:00:42.2]} 36... Kg7 {[%clk 0:00:24.8]} 37. Qb6 {[%clk
0:00:40.9]} 37... Rd7 {[%clk 0:00:23.9]} 38. Nc5 {[%clk 0:00:39.5]} 38... Re7
{[%clk 0:00:22.6]} 39. Nxb7 {[%clk 0:00:38.4]} 39... Qb8 {[%clk 0:00:22.5]} 40.
Qxc6 {[%clk 0:00:37.9]} 40... Bxg3+ {[%clk 0:00:21.4]} 41. Kg1 {[%clk
0:00:35.7]} 41... Re1+ {[%clk 0:00:19.9]} 42. Bf1 {[%clk 0:00:34.7]} 42... Bh2+
{[%clk 0:00:20.2]} 43. Kh1 {[%clk 0:00:31.9]} 43... Rxf1+ {[%clk 0:00:20.3]} 44.
Kg2 {[%clk 0:00:32.5]} 44... Rg1+ {[%clk 0:00:20.8]} 45. Kf2 {[%clk 0:00:32.7]}
45... Qg3+ {[%clk 0:00:20.8]} 0-1